fUST/lending_fUST_20240919
["ID","MTS","AMOUNT","RATE_DAILY","PERIOD"]
[338474736,1726683048962,-535.3,0.00019178,2]
[338474737,1726683048972,-500.0,0.00019178,2]
[338474738,1726683048981,-500.0,0.00019178,2]
[338474739,1726683048992,-500.0,0.00019178,2]
[338474740,1726683049001,-690.37,0.00019178,2]
[338474741,1726683049011,-522.29,0.00019178,2]
[338474742,1726683049020,-500.0,0.00019178,2]
[338474743,1726683049030,-500.0,0.00019178,2]
[338474744,1726683049040,-701.16,0.00019178,2]
[338474745,1726683049050,-500.0,0.00019178,2]
[338474746,1726683049060,-500.0,0.00019178,2]
[338474747,1726683049072,-500.0,0.00019178,2]
[338474748,1726683049081,-336.1569069,0.00019178,2]
[338474749,1726683049091,-548.24,0.00019178,2]
[338474750,1726683049100,-500.0,0.00019178,2]
[338474751,1726683049110,-1762.41,0.00019178,2]
[338474752,1726683049119,-679.13,0.00019178,2]
[338474753,1726683049129,-500.0,0.00019178,2]
[338474754,1726683049139,-500.0,0.00019178,2]
[338474755,1726683049148,-2181.79,0.00019178,2]
[338474756,1726683049158,-1184.15,0.00019178,2]
[338474757,1726683049167,-500.0,0.00019178,2]
[338474758,1726683049178,-500.0,0.00019178,2]
[338474759,1726683049187,-163.5912942,0.00019178,2]
[338474760,1726683049196,-530.21,0.00019178,2]
[338474761,1726683049206,-500.0,0.00019178,2]
[338474762,1726683049215,-595.55,0.00019178,2]
[338474763,1726683049225,-500.0,0.00019178,2]
[338474764,1726683049234,-500.0,0.00019178,2]
[338474765,1726683049244,-223.49469264,0.00019178,2]
[338474766,1726683049253,-500.0,0.00019178,2]
[338474767,1726683049263,-542.31879306,0.00019178,2]
[338474768,1726683049272,-500.0,0.00019178,2]
[338474769,1726683049281,-524.05,0.00019178,2]
[338474770,1726683049291,-1166.91,0.00019178,2]
[338474771,1726683049300,-500.0,0.00019178,2]
[338474772,1726683049309,-500.0,0.00019178,2]
[338474773,1726683049318,-500.0,0.00019178,2]
[338474774,1726683049330,-500.0,0.00019178,2]
[338474775,1726683049339,-500.0,0.00019178,2]
[338474776,1726683049349,-708.89,0.00019178,2]
[338474777,1726683049358,-390.46,0.00019178,2]
[338474778,1726683049367,-500.0,0.00019178,2]
[338474779,1726683049377,-1080.56,0.00019178,2]
[338474780,1726683049386,-500.0,0.00019178,2]
[338474781,1726683049395,-500.0,0.00019178,2]
[338474782,1726683049405,-500.0,0.00019178,2]
[338474783,1726683049415,-500.0,0.00019178,2]
[338474784,1726683049426,-500.0,0.00019178,2]
[338474785,1726683049435,-500.0,0.00019178,2]
[338474786,1726683049445,-500.0,0.00019178,2]
[338474787,1726683049454,-779.57,0.00019178,2]
[338474788,1726683049465,-500.0,0.00019178,2]
[338474789,1726683049474,-500.0,0.00019178,2]
[338474790,1726683049484,-309.26441141,0.00019178,2]
[338474791,1726683049493,-500.0,0.00019178,2]
[338474792,1726683049503,-1523.73,0.00019178,2]
[338474793,1726683049513,-500.0,0.00019178,2]
[338474794,1726683049523,-505.57,0.00019178,2]
[338474795,1726683049532,-500.0,0.00019178,2]
[338474796,1726683049542,-500.0,0.00019178,2]
[338474797,1726683049551,-676.12,0.00019178,2]
[338474798,1726683049560,-1625.64,0.00019178,2]
[338474799,1726683049570,-1107.27,0.00019178,2]
[338474800,1726683049583,-500.0,0.00019178,2]
[338474801,1726683049593,-500.0,0.00019178,2]
[338474802,1726683049603,-500.0,0.00019178,2]
[338474803,1726683049612,-2126.32,0.00019178,2]
[338474804,1726683049621,-500.0,0.00019178,2]
[338474805,1726683049630,-500.0,0.00019178,2]
[338474806,1726683049642,-500.0,0.00019178,2]
[338474807,1726683049651,-903.77,0.00019178,2]
[338474808,1726683049660,-398.38322423,0.00019178,2]
[338474809,1726683049670,-903.77,0.00019178,2]
[338474810,1726683049679,-903.77,0.00019178,2]
[338474811,1726683049688,-903.77,0.00019178,2]
[338474812,1726683049697,-903.77,0.00019178,2]
[338474813,1726683049706,-903.77,0.00019178,2]
[338474814,1726683049715,-903.77,0.00019178,2]
[338474815,1726683049724,-903.77,0.00019178,2]
[338474816,1726683049736,-903.77,0.00019178,2]
[338474817,1726683049747,-903.77,0.00019178,2]
[338474818,1726683049757,-500.0,0.00019178,2]
[338474819,1726683049766,-500.0,0.00019178,2]
[338474820,1726683049776,-903.77,0.00019178,2]
[338474821,1726683049785,-500.0,0.00019178,2]
[338474822,1726683049794,-903.77,0.00019178,2]
[338474823,1726683049804,-903.77,0.00019178,2]
[338474824,1726683049815,-903.77,0.00019178,2]
[338474825,1726683049828,-903.77,0.00019178,2]
[338474826,1726683049839,-903.77,0.00019178,2]
[338474827,1726683049851,-903.77,0.00019178,2]
[338474828,1726683049860,-903.77,0.00019178,2]
[338474829,1726683049870,-903.77,0.00019178,2]
[338474830,1726683049879,-500.0,0.00019178,2]
[338474831,1726683049888,-500.0,0.00019178,2]
[338474832,1726683049897,-500.0,0.00019178,2]
[338474833,1726683049906,-903.77,0.00019178,2]
[338474834,1726683049915,-903.77,0.00019178,2]
[338474835,1726683049924,-903.77,0.00019178,2]
[338474836,1726683049933,-903.77,0.00019178,2]
[338474837,1726683049942,-4483.94,0.00019178,2]
[338474838,1726683049951,-903.91439044,0.00019178,2]
[338474839,1726683049961,-4483.94,0.00019178,2]
[338474840,1726683049970,-4483.94,0.00019178,2]
[338474841,1726683049979,-500.0,0.00019178,2]
[338474842,1726683049988,-4483.94,0.00019178,2]
[338474843,1726683049997,-4483.94,0.00019178,2]
[338474844,1726683050007,-4483.94,0.00019178,2]
[338474845,1726683050016,-4483.94,0.00019178,2]
[338474846,1726683050026,-4483.94,0.00019178,2]
[338474847,1726683050035,-545.26,0.00019178,2]
[338474849,1726683050045,-4483.94,0.00019178,2]
[338474851,1726683050055,-4483.94,0.00019178,2]
[338474853,1726683050064,-4483.94,0.00019178,2]
[338474854,1726683050073,-500.0,0.00019178,2]
[338474856,1726683050082,-4483.94,0.00019178,2]
[338474857,1726683050091,-500.0,0.00019178,2]
[338474859,1726683050100,-4483.94,0.00019178,2]
[338474861,1726683050109,-4483.94,0.00019178,2]
[338474863,1726683050118,-555.56,0.00019178,2]
[338474865,1726683050127,-4483.94,0.00019178,2]
[338474867,1726683050136,-1023.61,0.00019178,2]
[338474868,1726683050145,-442.27621167,0.00019178,2]
[338474870,1726683050155,-500.0,0.00019178,2]
[338474872,1726683050163,-500.0,0.00019178,2]
[338474873,1726683050172,-1227.51,0.00019178,2]
[338474875,1726683050181,-4483.94,0.00019178,2]
[338474876,1726683050191,-4483.94,0.00019178,2]
[338474877,1726683050199,-4483.94,0.00019178,2]
[338474878,1726683050208,-500.0,0.00019178,2]
[338474879,1726683050217,-4483.94,0.00019178,2]
[338474880,1726683050226,-525.92,0.00019178,2]
[338474881,1726683050235,-4483.94,0.00019178,2]
[338474882,1726683050244,-4483.94,0.00019178,2]
[338474883,1726683050253,-4483.94,0.00019178,2]
[338474884,1726683050262,-4483.94,0.00019178,2]
[338474885,1726683050271,-4484.17036807,0.00019178,2]
[338474886,1726683050280,-1679.31,0.00019178,2]
[338474887,1726683050290,-500.0,0.00019178,2]
[338474888,1726683050299,-500.0,0.00019178,2]
[338474889,1726683050309,-500.0,0.00019178,2]
[338474890,1726683050318,-500.0,0.00019178,2]
[338474891,1726683050332,-500.0,0.00019178,2]
[338474892,1726683050344,-500.0,0.00019178,2]
[338474893,1726683050354,-713.98,0.00019178,2]
[338474894,1726683050365,-500.0,0.00019178,2]
[338474895,1726683050375,-500.0,0.00019178,2]
[338474896,1726683050384,-930.94,0.00019178,2]
[338474897,1726683050396,-2096.31,0.00019178,2]
[338474898,1726683050405,-500.0,0.00019178,2]
[338474899,1726683050416,-500.0,0.00019178,2]
[338474900,1726683050429,-500.0,0.00019178,2]
[338474901,1726683050439,-379.29274194,0.00019178,2]
[338474902,1726683050461,-641.72110543,0.00019178,2]
[338474903,1726683050473,-500.0,0.00019178,2]
[338474904,1726683050483,-734.08,0.00019178,2]
[338474905,1726683050493,-788.27,0.00019178,2]
[338474906,1726683050503,-500.0,0.00019178,2]
[338474907,1726683050513,-1736.31,0.00019178,2]
[338474908,1726683050523,-500.0,0.00019178,2]
[338474909,1726683050532,-500.0,0.00019178,2]
[338474910,1726683050542,-335.43192672,0.00019178,2]
[338474911,1726683050552,-500.0,0.00019178,2]
[338474912,1726683050561,-500.0,0.00019178,2]
[338474913,1726683050572,-1927.47,0.00019178,2]
[338474914,1726683050591,-532.59370573,0.00019178,2]
[338474915,1726683050810,-1719.33,0.00019178,2]
[338474916,1726683050822,-500.0,0.00019178,2]
[338474917,1726683050838,-500.0,0.00019178,2]
[338474918,1726683050847,-500.0,0.00019178,2]
[338474919,1726683050857,-500.0,0.00019178,2]
[338474920,1726683050867,-500.0,0.00019178,2]
[338474921,1726683050876,-500.0,0.00019178,2]
[338474922,1726683050886,-2652.94,0.00019178,2]
[338474923,1726683050895,-500.0,0.00019178,2]
[338474924,1726683050905,-500.0,0.00019178,2]
[338474925,1726683050914,-500.0,0.00019178,2]
[338474926,1726683050924,-500.0,0.00019178,2]
[338474927,1726683050934,-585.0,0.00019178,2]
[338474928,1726683050944,-500.0,0.00019178,2]
[338474929,1726683050954,-526.02569223,0.00019178,2]
[338474930,1726683050963,-1569.52,0.00019178,2]
[338474931,1726683050973,-500.0,0.00019178,2]
[338474932,1726683050982,-500.0,0.00019178,2]
[338474933,1726683050992,-747.27,0.00019178,2]
[338474934,1726683051002,-1720.06,0.00019178,2]
[338474935,1726683051016,-1000.0,0.00019178,2]
[338474936,1726683051027,-666.8,0.00019178,2]
[338474937,1726683051037,-2067.36,0.00019178,2]
[338474938,1726683051047,-1360.27,0.00019178,2]
[338474939,1726683051056,-500.0,0.00019178,2]
[338474940,1726683051066,-500.0,0.00019178,2]
[338474941,1726683051079,-643.54,0.00019178,2]
[338474942,1726683051088,-840.17,0.00019178,2]
[338474943,1726683051098,-500.0,0.00019178,2]
[338474944,1726683051107,-500.0,0.00019178,2]
[338474945,1726683051116,-500.0,0.00019178,2]
[338474946,1726683051126,-578.82,0.00019178,2]
[338474947,1726683051136,-711.68,0.00019178,2]
[338474948,1726683051146,-2522.26,0.00019178,2]
[338474949,1726683051156,-500.0,0.00019178,2]
[338474950,1726683051166,-500.0,0.00019178,2]
[338474951,1726683051176,-500.0,0.00019178,2]
[338474952,1726683051185,-500.0,0.00019178,2]
[338474953,1726683051195,-500.0,0.00019178,2]
[338474954,1726683051205,-500.0,0.00019178,2]
[338474955,1726683051214,-500.0,0.00019178,2]
[338474956,1726683051224,-500.0,0.00019178,2]
[338474957,1726683051234,-500.0,0.00019178,2]
[338474958,1726683051244,-1107.4,0.00019178,2]
[338474959,1726683051254,-500.0,0.00019178,2]
[338474960,1726683051264,-500.0,0.00019178,2]
[338474961,1726683051273,-500.0,0.00019178,2]
[338474962,1726683051283,-1152.16,0.00019178,2]
[338474963,1726683051293,-500.0,0.00019178,2]
[338474964,1726683051303,-363.17378921,0.00019178,2]
[338474965,1726683051351,-136.82621079,0.00019178,2]
[338474966,1726683051363,-500.0,0.00019178,2]
[338474967,1726683051372,-364.52135495,0.00019178,2]
[338474968,1726683051709,-149.27001983,0.00019178,2]
[338474969,1726683051719,-519.73,0.00019178,2]
[338474970,1726683051731,-500.0,0.00019178,2]
[338474971,1726683051741,-500.0,0.00019178,2]
[338474972,1726683051752,-62.19779469,0.00019178,2]
[338474973,1726683051764,-437.80220531,0.00019178,2]
[338474974,1726683051773,-63.74779469,0.00019178,2]
[338474975,1726683051791,-436.25220531,0.00019178,2]
[338474976,1726683051801,-500.0,0.00019178,2]
[338474977,1726683051815,-609.03,0.00019178,2]
[338474978,1726683051828,-500.0,0.00019178,2]
[338474979,1726683051838,-500.69801187,0.00019178,2]
[338474980,1726683051848,-500.0,0.00019178,2]
[338474981,1726683051857,-500.0,0.00019178,2]
[338474982,1726683051867,-500.0,0.00019178,2]
[338474983,1726683051877,-500.0,0.00019178,2]
[338474984,1726683051886,-500.0,0.00019178,2]
[338474985,1726683051896,-637.48,0.00019178,2]
[338474986,1726683051906,-500.0,0.00019178,2]
[338474987,1726683051916,-500.0,0.00019178,2]
[338474988,1726683051926,-501.09824755,0.00019178,2]
[338474989,1726683051935,-500.0,0.00019178,2]
[338474990,1726683051945,-1783.73,0.00019178,2]
[338474991,1726683051954,-248.80975726,0.00019178,2]
[338474992,1726683051965,-500.0,0.00019178,2]
[338474993,1726683051975,-500.0,0.00019178,2]
[338474994,1726683051985,-500.0,0.00019178,2]
[338474995,1726683051995,-500.0,0.00019178,2]
[338474996,1726683052005,-97.65458042,0.00019178,2]
[338474997,1726683052968,-1000.0,0.00018996,2]
[338474998,1726683052978,-224.485677,0.00019096,2]
[338474999,1726683052989,-224.485677,0.00019098,2]
[338475000,1726683052999,-224.485677,0.00019098,2]
[338475001,1726683053009,-1022.04541958,0.00019178,2]
[338475002,1726683053019,-500.0547003,0.00019178,2]
[338475003,1726683053094,-46.0904737,0.00019178,2]
[338475004,1726683053104,-1389.34,0.00019178,2]
[338475005,1726683053114,-957.77,0.00019178,2]
[338475006,1726683053125,-500.0,0.00019178,2]
[338475007,1726683053134,-500.0,0.00019178,2]
[338475008,1726683053145,-500.0,0.00019178,2]
[338475009,1726683053157,-2468.02,0.00019178,2]
[338475010,1726683053167,-500.0,0.00019178,2]
[338475011,1726683053178,-500.0,0.00019178,2]
[338475012,1726683053188,-500.0,0.00019178,2]
[338475013,1726683053200,-500.0,0.00019178,2]
[338475014,1726683053211,-500.0,0.00019178,2]
[338475015,1726683053222,-500.0,0.00019178,2]
[338475016,1726683053232,-500.0,0.00019178,2]
[338475017,1726683053242,-500.0,0.00019178,2]
[338475018,1726683053252,-500.0,0.00019178,2]
[338475019,1726683053492,-500.0,0.00019178,2]
[338475020,1726683053504,-500.0,0.00019178,2]
[338475021,1726683053516,-500.0,0.00019178,2]
[338475022,1726683053526,-500.0,0.00019178,2]
[338475023,1726683053536,-500.0,0.00019178,2]
[338475024,1726683053547,-500.0,0.00019178,2]
[338475025,1726683053559,-649.43499826,0.00019178,2]
[338475026,1726683053570,-500.0,0.00019178,2]
[338475027,1726683053582,-500.0,0.00019178,2]
[338475028,1726683053592,-558.88,0.00019178,2]
[338475029,1726683053606,-500.0,0.00019178,2]
[338475030,1726683053616,-500.0,0.00019178,2]
[338475031,1726683053627,-500.0,0.00019178,2]
[338475032,1726683053638,-500.0,0.00019178,2]
[338475033,1726683053649,-500.0,0.00019178,2]
[338475034,1726683053658,-1904.63,0.00019178,2]
[338475035,1726683053667,-516.1,0.00019178,2]
[338475036,1726683053680,-500.0,0.00019178,2]
[338475037,1726683053692,-500.0,0.00019178,2]
[338475038,1726683053701,-1683.54,0.00019178,2]
[338475039,1726683053711,-528.23,0.00019178,2]
[338475040,1726683053720,-500.0,0.00019178,2]
[338475041,1726683053730,-500.0,0.00019178,2]
[338475042,1726683053740,-3090.01,0.00019178,2]
[338475043,1726683053750,-1554.54,0.00019178,2]
[338475044,1726683053760,-1080.21,0.00019178,2]
[338475045,1726683053769,-1254.96,0.00019178,2]
[338475046,1726683053778,-500.0,0.00019178,2]
[338475047,1726683053790,-576.68,0.00019178,2]
[338475048,1726683053799,-500.0,0.00019178,2]
[338475049,1726683053808,-894.89,0.00019178,2]
[338475050,1726683053818,-805.67,0.00019178,2]
[338475051,1726683053831,-862.56,0.00019178,2]
[338475052,1726683053840,-514.86769866,0.00019178,2]
[338475053,1726683053850,-500.0,0.00019178,2]
[338475054,1726683053859,-500.0,0.00019178,2]
[338475055,1726683053870,-500.0,0.00019178,2]
[338475056,1726683053880,-500.0,0.00019178,2]
[338475057,1726683053890,-500.0,0.00019178,2]
[338475058,1726683053900,-1469.71,0.00019178,2]
[338475059,1726683053910,-500.0,0.00019178,2]
[338475060,1726683053920,-500.0,0.00019178,2]
[338475061,1726683053929,-500.0,0.00019178,2]
[338475062,1726683053939,-886.84,0.00019178,2]
[338475063,1726683053948,-1721.91,0.00019178,2]
[338475064,1726683053958,-500.0,0.00019178,2]
[338475065,1726683053967,-2301.41,0.00019178,2]
[338475066,1726683053977,-567.66,0.00019178,2]
[338475067,1726683053988,-500.0,0.00019178,2]
[338475068,1726683053998,-500.0,0.00019178,2]
[338475069,1726683054008,-555.20290379,0.00019178,2]
[338475070,1726683054019,-500.0,0.00019178,2]
[338475071,1726683054028,-500.0,0.00019178,2]
[338475072,1726683054039,-500.0,0.00019178,2]
[338475073,1726683054050,-511.76,0.00019178,2]
[338475074,1726683054060,-1292.1,0.00019178,2]
[338475075,1726683054072,-572.89102883,0.00019178,2]
[338475076,1726683054082,-500.0,0.00019178,2]
[338475077,1726683054091,-500.0,0.00019178,2]
[338475078,1726683054100,-570.15,0.00019178,2]
[338475079,1726683054111,-500.0,0.00019178,2]
[338475080,1726683054122,-500.0,0.00019178,2]
[338475081,1726683054133,-767.24,0.00019178,2]
[338475082,1726683054144,-671.23,0.00019178,2]
[338475083,1726683054154,-500.0,0.00019178,2]
[338475084,1726683054164,-670.63,0.00019178,2]
[338475085,1726683054175,-524.12,0.00019178,2]
[338475086,1726683054186,-757.3,0.00019178,2]
[338475087,1726683054198,-500.0,0.00019178,2]
[338475088,1726683054209,-294.57082293,0.00019178,2]
[338475089,1726683054225,-1433.74917707,0.00019178,2]
[338475090,1726683054237,-630.48,0.00019178,2]
[338475091,1726683054246,-345.02180147,0.00019178,2]
[338475092,1726683054260,-285.45819853,0.00019178,2]
[338475093,1726683054270,-325.15284895,0.00019178,2]
[338475094,1726683055030,-411.5182532,0.000187,2]
[338475095,1726683055042,-224.485677,0.00019115,2]
[338475096,1726683055052,-224.485677,0.00019116,2]
[338475097,1726683055062,-224.485677,0.00019116,2]
[338475098,1726683055073,-224.485677,0.00019116,2]
[338475099,1726683055083,-224.485677,0.00019116,2]
[338475100,1726683055094,-224.485677,0.00019117,2]
[338475101,1726683055104,-305.32715105,0.00019178,2]
[338475102,1726683055114,-630.48,0.00019178,2]
[338475103,1726683055130,-630.48,0.00019178,2]
[338475104,1726683055140,-630.48,0.00019178,2]
[338475105,1726683055151,-630.48,0.00019178,2]
[338475106,1726683055162,-500.0,0.00019178,2]
[338475107,1726683055171,-176.37305345,0.00019178,2]
[338475108,1726683055185,-454.10694655,0.00019178,2]
[338475109,1726683055197,-630.48,0.00019178,2]
[338475110,1726683055207,-618.46966036,0.00019178,2]
[338475154,1726684231900,-1154.45854577,0.00017382,2]
[338475155,1726684231910,-192.85443142,0.00017382,2]
[338475156,1726684231919,-308.7222407,0.00017384,2]
[338475157,1726684231928,-250.511672,0.00017644,2]
[338475158,1726684231937,-3300.9814309,0.00017661,2]
[338475159,1726684231946,-218.55549092,0.000177,2]
[338475160,1726684231955,-339.975912,0.00017808,2]
[338475161,1726684231964,-164.143126,0.00017823,2]
[338475162,1726684231973,-164.143126,0.00017878,2]
[338475163,1726684231982,-164.143126,0.00017933,2]
[338475164,1726684231991,-164.143126,0.00017987,2]
[338475165,1726684232000,-164.143126,0.00018042,2]
[338475166,1726684232010,-164.143126,0.00018097,2]
[338475167,1726684232019,-164.143126,0.00018151,2]
[338475168,1726684232028,-164.143126,0.00018206,2]
[338475169,1726684232037,-164.143126,0.0001826,2]
[338475170,1726684232046,-164.143126,0.00018315,2]
[338475171,1726684232055,-164.143126,0.0001837,2]
[338475172,1726684232064,-300.0,0.00018377,2]
[338475173,1726684232073,-300.0,0.00018377,2]
[338475174,1726684232082,-411.5182532,0.00018378,2]
[338475175,1726684232095,-411.5182532,0.00018378,2]
[338475176,1726684232105,-600.0,0.00018411,2]
[338475177,1726684232114,-164.143126,0.00018424,2]
[338475178,1726684232123,-164.143126,0.00018479,2]
[338475179,1726684232132,-164.143126,0.00018534,2]
[338475180,1726684232145,-411.5182532,0.00018578,2]
[338475181,1726684232154,-164.143126,0.00018588,2]
[338475182,1726684232163,-600.0,0.00018603,2]
[338475183,1726684232172,-164.143126,0.00018643,2]
[338475184,1726684232182,-164.143126,0.00018697,2]
[338475185,1726684232191,-411.5182532,0.000187,2]
[338475186,1726684232200,-411.5182532,0.000187,2]
[338475187,1726684232209,-411.5182532,0.000187,2]
[338475188,1726684232219,-411.5182532,0.000187,2]
[338475189,1726684232229,-164.143126,0.00018752,2]
[338475190,1726684232239,-600.0,0.00018794,2]
[338475191,1726684232249,-411.5182532,0.00018795,2]
[338475192,1726684232258,-411.5182532,0.00018795,2]
[338475193,1726684232267,-411.5182532,0.00018795,2]
[338475194,1726684232277,-411.5182532,0.00018795,2]
[338475195,1726684232286,-411.5182532,0.00018795,2]
[338475196,1726684232295,-411.5182532,0.00018795,2]
[338475197,1726684232305,-411.5182532,0.00018795,2]
[338475198,1726684232315,-411.5182532,0.00018795,2]
[338475199,1726684232324,-411.5182532,0.00018795,2]
[338475200,1726684232333,-411.5182532,0.00018795,2]
[338475201,1726684232345,-411.5182532,0.00018795,2]
[338475202,1726684232354,-411.5182532,0.00018795,2]
[338475203,1726684232364,-411.5182532,0.00018795,2]
[338475204,1726684232372,-411.5182532,0.00018795,2]
[338475205,1726684232382,-411.5182532,0.00018795,2]
[338475206,1726684232391,-411.5182532,0.00018795,2]
[338475207,1726684232400,-411.5182532,0.00018795,2]
[338475208,1726684232409,-411.5182532,0.00018795,2]
[338475209,1726684232418,-3000.0,0.000189,2]
[338475210,1726684232428,-3207.877518,0.0001891,2]
[338475211,1726684232437,-606.72772136,0.00018986,2]
[338475212,1726684232447,-411.5182532,0.00019,2]
[338475213,1726684232456,-411.5182532,0.00019,2]
[338475214,1726684232465,-411.5182532,0.00019,2]
[338475215,1726684232474,-411.5182532,0.00019,2]
[338475216,1726684232483,-410.2507449,0.00019052,2]
[338475217,1726684232492,-1222.55676729,0.00019073,2]
[338475218,1726684232501,-2000.0,0.000191,2]
[338475219,1726684232510,-411.5182532,0.000191,2]
[338475220,1726684232519,-1000.0,0.00019135,2]
[338475221,1726684232529,-1000.0,0.00019135,2]
[338475222,1726684232538,-1000.0,0.00019135,2]
[338475223,1726684232547,-106.75159477,0.00019135,2]
[338475224,1726684232558,-694.76841677,0.00019135,2]
[338475225,1726684232570,-198.47998846,0.00019135,2]
[338475226,1726684232579,-1000.0,0.00019135,2]
[338475227,1726684232591,-1000.0,0.00019135,2]
[338475228,1726684232606,-316.88142378,0.00019135,2]
[338475229,1726684232616,-405.66,0.00019138,3]
[338475230,1726684232625,-500.0,0.00019147,2]
[338475231,1726684232634,-500.0,0.00019147,2]
[338475232,1726684232644,-382.4931915,0.00019147,2]
[338475234,1726684232654,-872.85143485,0.00019148,3]
[338475266,1726684237962,-449.46135705,0.00019058,2]
[338475281,1726684238087,-529.09022378,0.00019058,2]
[338475283,1726684238099,-978.55158081,0.00019063,2]
[338475285,1726684238108,-927.72120412,0.00019068,2]
[338475429,1726684239966,-50.83037669,0.00019068,2]
[338475430,1726684239975,-978.55158081,0.00019073,2]
[338475431,1726684239984,-32882.18514415,0.00019148,3]
[338475432,1726684239994,-33864.6308801,0.00019148,3]
[338475433,1726684240003,-86610.97519739,0.00019158,3]
[338475461,1726684243103,-978.55158081,0.00019078,2]
[338475462,1726684243113,-21.44841919,0.00019158,3]
[338475463,1726684243125,-48387.72269942,0.00019158,3]
[338475465,1726684243136,-12583.42522675,0.00019158,3]
[338475480,1726684246025,-411.5182532,0.00018795,2]
[338475481,1726684246035,-5613.0717468,0.00019158,3]
[338475482,1726684246046,-605.0,0.00019158,3]
[338475483,1726684246058,-25638.49940753,0.00019158,3]
[338475484,1726684246069,-1536.10354611,0.00019158,3]
[338475584,1726685432510,-340.952951,0.00017808,2]
[338475586,1726685432519,-274.3564364,0.00017933,2]
[338475588,1726685432529,-162.062291,0.0001815,2]
[338475590,1726685432538,-5959.58370788,0.00018842,2]
[338475592,1726685432548,-300.0,0.00018899,2]
[338475594,1726685432558,-300.0,0.00018899,2]
[338475596,1726685432567,-150.0,0.000189,2]
[338475598,1726685432577,-411.5182532,0.000189,2]
[338475600,1726685432586,-411.5182532,0.000189,2]
[338475602,1726685432595,-411.5182532,0.000189,2]
[338475604,1726685432605,-411.5182532,0.000189,2]
[338475606,1726685432614,-240.08667943,0.00019056,2]
[338475687,1726685438116,-860.21441114,0.00019056,2]
[338475688,1726685438126,-4420.80624248,0.00019058,2]
[338475689,1726685438135,-186.169,0.00019078,2]
[338475690,1726685438145,-187.62890113,0.00019078,2]
[338475691,1726685438154,-894.31362004,0.00019083,2]
[338475692,1726685438164,-162.062291,0.00019095,2]
[338475693,1726685438173,-411.5182532,0.000191,2]
[338475694,1726685438183,-411.5182532,0.000191,2]
[338475695,1726685438192,-411.5182532,0.000191,2]
[338475696,1726685438202,-585.95131515,0.00019133,2]
[338475697,1726685438211,-585.95131515,0.00019133,2]
[338475698,1726685438220,-585.95131515,0.00019133,2]
[338475699,1726685438230,-585.95131515,0.00019133,2]
[338475700,1726685438239,-585.95131515,0.00019133,2]
[338475701,1726685438248,-585.95131515,0.00019133,2]
[338475702,1726685438258,-585.95131515,0.00019133,2]
[338475703,1726685438268,-585.95131515,0.00019133,2]
[338475705,1726685438277,-585.95131515,0.00019133,2]
[338475707,1726685438286,-585.95131515,0.00019133,2]
[338475708,1726685438296,-585.95131515,0.00019133,2]
[338475709,1726685438305,-585.95131515,0.00019133,2]
[338475710,1726685438315,-585.95131515,0.00019133,2]
[338475711,1726685438324,-585.95131515,0.00019133,2]
[338475712,1726685438333,-585.95131515,0.00019133,2]
[338475713,1726685438344,-585.95131515,0.00019133,2]
[338475714,1726685438354,-585.95131515,0.00019133,2]
[338475715,1726685438364,-585.95131515,0.00019133,2]